[Event "Early-Titled-Tuesday-Blitz-January-23-2024"]
[Site "Chess.com"]
[Date "2024.01.23"]
[Round "11"]
[White "maciek_92"]
[Black "Sadykov_Ramil"]
[Result "1/2-1/2"]
[WhiteElo "2799"]
[BlackElo "2612"]
[TimeControl "180+1"]
[EndTime "10:10:16 PST"]
[Termination "Game drawn by repetition"]

1. e4 {[%clk 0:02:57.8]} 1... e5 {[%clk 0:03:00.3]} 2. Nf3 {[%clk 0:02:56.9]}
2... Nc6 {[%clk 0:03:01]} 3. Bb5 {[%clk 0:02:57]} 3... Nf6 {[%clk 0:03:01.2]} 4.
d3 {[%clk 0:02:56.9]} 4... d6 {[%clk 0:02:59.9]} 5. Nbd2 {[%clk 0:02:49.4]} 5...
a6 {[%clk 0:02:58.7]} 6. Bxc6+ {[%clk 0:02:49.4]} 6... bxc6 {[%clk 0:02:59.6]}
7. Qe2 {[%clk 0:02:49]} 7... c5 {[%clk 0:02:56]} 8. Nc4 {[%clk 0:02:42.6]} 8...
a5 {[%clk 0:02:54.1]} 9. Bg5 {[%clk 0:02:36]} 9... Be7 {[%clk 0:02:51.8]} 10. a4
{[%clk 0:02:34.8]} 10... Be6 {[%clk 0:02:51.5]} 11. Bxf6 {[%clk 0:02:34.2]}
11... Bxf6 {[%clk 0:02:47.6]} 12. b3 {[%clk 0:02:34.1]} 12... O-O {[%clk
0:02:43.1]} 13. O-O {[%clk 0:02:33.9]} 13... g6 {[%clk 0:02:38.8]} 14. Nfd2
{[%clk 0:02:16.5]} 14... Bg7 {[%clk 0:02:36.9]} 15. Nb1 {[%clk 0:02:17.2]} 15...
f5 {[%clk 0:02:34.4]} 16. Nc3 {[%clk 0:02:17.2]} 16... f4 {[%clk 0:02:27.3]} 17.
f3 {[%clk 0:02:17.2]} 17... g5 {[%clk 0:02:25.2]} 18. g4 {[%clk 0:01:44.3]}
18... fxg3 {[%clk 0:02:13.6]} 19. hxg3 {[%clk 0:01:45.2]} 19... Rf6 {[%clk
0:02:09.7]} 20. g4 {[%clk 0:01:41.9]} 20... h5 {[%clk 0:01:55.6]} 21. Ne3 {[%clk
0:01:28.2]} 21... h4 {[%clk 0:01:14.5]} 22. Nf5 {[%clk 0:01:28.2]} 22... Kh7
{[%clk 0:01:06.7]} 23. Nd5 {[%clk 0:01:21.6]} 23... Rf7 {[%clk 0:01:00.3]} 24.
Nde3 {[%clk 0:01:20.9]} 24... Kg6 {[%clk 0:00:59]} 25. Kg2 {[%clk 0:01:19.7]}
25... Bf6 {[%clk 0:00:52.4]} 26. Kh3 {[%clk 0:01:19.8]} 26... Qd7 {[%clk
0:00:49.6]} 27. Qd2 {[%clk 0:01:17.2]} 27... Rff8 {[%clk 0:00:44.9]} 28. Nc4
{[%clk 0:01:14.2]} 28... Bxc4 {[%clk 0:00:28.8]} 29. dxc4 {[%clk 0:01:11.5]}
29... Qe6 {[%clk 0:00:26.6]} 30. Qc3 {[%clk 0:00:52.7]} 30... Rfe8 {[%clk
0:00:23.2]} 31. Rad1 {[%clk 0:00:53.3]} 31... Rf8 {[%clk 0:00:22.4]} 32. Rd5
{[%clk 0:00:53.9]} 32... Rfd8 {[%clk 0:00:18.1]} 33. Rfd1 {[%clk 0:00:54.5]}
33... Rd7 {[%clk 0:00:14.3]} 34. Qa1 {[%clk 0:00:53.5]} 34... Rdd8 {[%clk
0:00:13.4]} 35. c3 {[%clk 0:00:53.5]} 35... Rab8 {[%clk 0:00:12.5]} 36. Rb1
{[%clk 0:00:34.1]} 36... Rb6 {[%clk 0:00:12.4]} 37. b4 {[%clk 0:00:33]} 37...
cxb4 {[%clk 0:00:11.1]} 38. cxb4 {[%clk 0:00:26.8]} 38... Rxb4 {[%clk
0:00:11.3]} 39. Rxb4 {[%clk 0:00:24.3]} 39... axb4 {[%clk 0:00:12.2]} 40. a5
{[%clk 0:00:24.9]} 40... c6 {[%clk 0:00:12.6]} 41. Rd1 {[%clk 0:00:21.8]} 41...
Qxc4 {[%clk 0:00:12.7]} 42. Qb2 {[%clk 0:00:10.3]} 42... Ra8 {[%clk 0:00:07.8]}
43. Nxd6 {[%clk 0:00:09.1]} 43... Qc3 {[%clk 0:00:04.8]} 44. Qxc3 {[%clk
0:00:08.2]} 44... bxc3 {[%clk 0:00:05.7]} 45. Rc1 {[%clk 0:00:08.6]} 45... Rxa5
{[%clk 0:00:05.6]} 46. Rxc3 {[%clk 0:00:09.3]} 46... c5 {[%clk 0:00:05.4]} 47.
Nb7 {[%clk 0:00:09]} 47... Ra7 {[%clk 0:00:03.5]} 48. Nxc5 {[%clk 0:00:09.6]}
48... Rc7 {[%clk 0:00:04.1]} 49. Na4 {[%clk 0:00:09.4]} 49... Rxc3 {[%clk
0:00:03.9]} 50. Nxc3 {[%clk 0:00:10.3]} 50... Kf7 {[%clk 0:00:03.8]} 51. Nd5
{[%clk 0:00:10.6]} 51... Bd8 {[%clk 0:00:04.4]} 52. Kg2 {[%clk 0:00:11]} 52...
Ke6 {[%clk 0:00:04.9]} 53. Kf2 {[%clk 0:00:08.9]} 53... Kd6 {[%clk 0:00:05.4]}
54. Ke2 {[%clk 0:00:07.5]} 54... Kc5 {[%clk 0:00:05.5]} 55. Ne3 {[%clk
0:00:08.1]} 55... Kd6 {[%clk 0:00:05.3]} 56. Nd1 {[%clk 0:00:07.9]} 56... Bb6
{[%clk 0:00:04.9]} 57. Nc3 {[%clk 0:00:04.6]} 57... Ba5 {[%clk 0:00:04.1]} 58.
Nd5 {[%clk 0:00:04.5]} 58... Bd8 {[%clk 0:00:04.5]} 59. Ne3 {[%clk 0:00:04.5]}
59... Ke6 {[%clk 0:00:04.6]} 60. Nf5 {[%clk 0:00:03]} 60... Kf6 {[%clk
0:00:03.6]} 61. Nd6 {[%clk 0:00:03.1]} 61... Ke6 {[%clk 0:00:03.6]} 62. Nc4
{[%clk 0:00:03.7]} 62... Bc7 {[%clk 0:00:04.1]} 63. Nb2 {[%clk 0:00:04.3]} 63...
Bb6 {[%clk 0:00:04.4]} 64. Nd3 {[%clk 0:00:05]} 64... Bd4 {[%clk 0:00:04.4]} 65.
Kf1 {[%clk 0:00:04.6]} 65... Bb6 {[%clk 0:00:04.3]} 66. Ke2 {[%clk 0:00:03.6]}
66... Bd8 {[%clk 0:00:04.5]} 67. Nf2 {[%clk 0:00:03.6]} 67... Kd6 {[%clk
0:00:04.6]} 68. Kd3 {[%clk 0:00:03.1]} 68... Bb6 {[%clk 0:00:04.3]} 69. Nh3
{[%clk 0:00:02.9]} 69... Bd8 {[%clk 0:00:04.6]} 70. Kc4 {[%clk 0:00:03.8]} 70...
Kc6 {[%clk 0:00:04.1]} 71. Ng1 {[%clk 0:00:04]} 71... Be7 {[%clk 0:00:04.3]} 72.
Ne2 {[%clk 0:00:04.3]} 72... Bd8 {[%clk 0:00:04.4]} 73. Ng1 {[%clk 0:00:03.6]}
73... Be7 {[%clk 0:00:04.8]} 74. Nh3 {[%clk 0:00:04.4]} 74... Bd8 {[%clk
0:00:04.9]} 75. Kd3 {[%clk 0:00:04.4]} 75... Kc5 {[%clk 0:00:04.6]} 76. Nf2
{[%clk 0:00:04.5]} 76... Be7 {[%clk 0:00:04.9]} 77. Ke2 {[%clk 0:00:03.5]} 77...
Kd6 {[%clk 0:00:04.3]} 78. Nh3 {[%clk 0:00:04]} 78... Ke6 {[%clk 0:00:04.7]} 79.
Kd3 {[%clk 0:00:04.4]} 79... Bd8 {[%clk 0:00:04.8]} 80. Kc4 {[%clk 0:00:05.1]}
80... Kd6 {[%clk 0:00:05]} 81. Kb5 {[%clk 0:00:05.9]} 81... Be7 {[%clk 0:00:04]}
82. Kb6 {[%clk 0:00:06.6]} 82... Bd8+ {[%clk 0:00:04.3]} 83. Kb7 {[%clk
0:00:05.7]} 83... Kd7 {[%clk 0:00:04.8]} 84. Nf2 {[%clk 0:00:05]} 84... Be7
{[%clk 0:00:04.8]} 85. Kb6 {[%clk 0:00:04.9]} 85... Kd6 {[%clk 0:00:05]} 86. Nd3
{[%clk 0:00:04.2]} 86... Bf6 {[%clk 0:00:03.5]} 87. Kb7 {[%clk 0:00:04]} 87...
Kd7 {[%clk 0:00:03.5]} 88. Nf2 {[%clk 0:00:02.8]} 88... Be7 {[%clk 0:00:02.8]}
89. Kb6 {[%clk 0:00:03.1]} 89... Kd6 {[%clk 0:00:03.1]} 90. Kb5 {[%clk
0:00:03.6]} 90... Kd7 {[%clk 0:00:03.2]} 91. Nh3 {[%clk 0:00:02.8]} 91... Kc7
{[%clk 0:00:03.3]} 92. Kc4 {[%clk 0:00:02.9]} 92... Kd6 {[%clk 0:00:03.8]} 93.
Kd3 {[%clk 0:00:02.8]} 93... Kc5 {[%clk 0:00:04]} 94. Kc3 {[%clk 0:00:03]} 94...
Kd6 {[%clk 0:00:04.3]} 95. Kd3 {[%clk 0:00:03.7]} 95... Kc6 {[%clk 0:00:04.7]}
96. Kc3 {[%clk 0:00:04.3]} 96... Bd8 {[%clk 0:00:05.2]} 97. Kd3 {[%clk 0:00:05]}
97... Be7 {[%clk 0:00:05.8]} 98. Kc4 {[%clk 0:00:05.1]} 98... Bd8 {[%clk
0:00:06.2]} 1/2-1/2